Workbook

Sheet IOFSC-E (hidden)
B1: Income Over Feed Supplement Cost (IOFSC)® | AI1: Corn | AJ1: 56 | AK1: =AJ1*0.454 -> 25.424
I2: Overwrite | L2: yellow | N2: cells and make appropriate selections. | W2: Units | AI2: Barley | AJ2: 48 | AK2: =AJ2*0.454 -> 21.792
I3: Click on blue button to optimize IOFSC: results appear in | AI3: Wheat | AJ3: 60 | AK3: =AJ3*0.454 -> 27.24
B4: V.E. Cabrera, R.D. Shaver, and M.A. Wattiaux | I4: blue | K4: cells. Click on red button to substitute between
I5: feed supplements; results appear in figures and table. | Z5: FALSE | AB5: 1 | AC5: 2 | AD5: 3 | AE5: 4 | AF5: 5 | AG5: 6 | AH5: 7 | AI5: 8 | AJ5: 9 | AK5: 10 | AL5: 11 | AM5: 12 | AN5: 13 | AO5: 14 | AP5: 15 | AQ5: 16
AI6: RUP(%) | AJ6: RDP(%) | AK6: CP(%) | AM6: A | AN6: B | AO6: C | AP6: Kd | AQ6: Kp
B7: 1 | C7: Calculate Dry Matter Intake (DMI) | AB7: 1 | AC7: 35-Corn Silage-CoSi | AI7: =AK7*(AN7*(AQ7/(AP7+AQ7))+AO7) -> 0.03093285351 | AJ7: =AK7*(AM7+AN7*(AP7/(AP7+AQ7))) -> 0.05680314649 | AK7: 0.088 | AM7: 0.51 | AN7: 0.302 | AO7: 0.185 | AP7: 4.4 | AQ7: =3.054+0.614*(DMI/BW)*100 -> 5.40734407
B8: 1.1 | D8: Milk Producion (MP) | P8: lb/cow/day | Q8: 80 | AB8: 2 | AC8: 83-Alf. Silage-AlSi | AI8: 0.0399475448 | AJ8: 0.1790524552 | AK8: 0.219 | AM8: 0.573 | AN8: 0.353 | AO8: 0.074 | AP8: 12.2 | AQ8: =3.054+0.614*(DMI/BW)*100 -> 5.40734407
B9: 1.2 | D9: Body Weight (BW) | P9: lb/cow | Q9: 1400 | AB9: 3 | AC9: 74-Mx. Silage-MxSi | AI9: =AK9*(AN9*(AQ9/(AP9+AQ9))+AO9) -> 0.03685822608 | AJ9: 0.1531417739 | AK9: 0.19 | AM9: 0.581 | AN9: 0.342 | AO9: 0.077 | AP9: 10.4 | AQ9: =3.054+0.614*(DMI/BW)*100 -> 5.40734407
B10: 1.3 | D10: Days in Milk (DIM) | P10: day | Q10: 100 | X10: 100 | AB10: 4 | AC10: 77-Hay Forage- | AI10: 0.03474988704 | AJ10: 0.167250113 | AK10: 0.202 | AM10: 0.419 | AN10: 0.492 | AO10: 0.089 | AP10: 16.6 | AQ10: =3.362+0.479*(DMI/BW)-0.007*(1-Q14)-0.017*0.396 -> 3.37012715
B11: 1.4 | D11: Dry Matter Intake (DMI) | W11: lb/cow/day | X11: =((0.372*(FCM*0.454)+0.0968*(BW*0.454)^0.75*(1-EXP(1)^(-0.192*((DIM/7)+3.67))))/0.454)*(X10/100) -> 53.65931105 | AB11: 5 | AC11: 82-Silage Inmature<40% NDF-Si40 | AI11: 0.03539195262 | AJ11: 0.1966080474 | AK11: 0.232 | AM11: 0.616 | AN11: 0.291 | AO11: 0.093 | AP11: 13.1 | AQ11: =3.362+0.479*(DMI/BW)-0.007*(1-Forage)-0.017*0.367 -> 3.37062015
AB12: 6 | AC12: 83-Silage Inmature 40-46% NDF-Si43 | AI12: 0.03293658571 | AJ12: 0.1860634143 | AK12: 0.219 | AM12: 0.573 | AN12: 0.353 | AO12: 0.074 | AP12: 12.2 | AQ12: =3.362+0.479*(DMI/BW)-0.007*(1-Forage)-0.017*0.432 -> 3.36951515
B13: 2 | C13: Set the Sources and Proportion of Forage in the Diet | AB13: 7 | AC13: 84-Silage Inmature>46% NDF-Si50 | AI13: 0.04647169538 | AJ13: 0.1565283046 | AK13: 0.203 | AM13: 0.529 | AN13: 0.344 | AO13: 0.127 | AP13: 8 | AQ13: =3.362+0.479*(DMI/BW)-0.007*(1-Forage)-0.017*0.5 -> 3.36835915
B14: 2.1 | D14: Proportion of Forage in Diet | L14: --------- | P14: % of Diet | Q14: 0.5 | X14: =Forage*DMI -> 26.82965552
B15: 2.2 | D15: Corn Silage | M15: ----------- | R15: % of Forage | S15: 0.5 | Z15: =SUM(S15:T17) -> 1 | AB15: 1 | AC15: =VLOOKUP($AB15,$AB$7:$AQ$13,$AC$5,) -> 35-Corn Silage-CoSi | AI15: =VLOOKUP($AB15,$AB$7:$AQ$13,AI$5,TRUE) -> 0.03093285351 | AJ15: 0.05680314649 | AK15: 0.088 | AM15: =VLOOKUP($AB15,$AB$7:$AQ$13,AM$5,TRUE) -> 0.51 | AN15: 0.302 | AO15: 0.185 | AP15: 4.4 | AQ15: 5.40734407
B16: 2.3 | D16: Alfalfa | M16: ----------- | R16: % of Forage | S16: 0.5 | AB16: 2 | AC16: =VLOOKUP($AB16,$AB$7:$AQ$13,$AC$5,) -> 83-Alf. Silage-AlSi | AI16: 0.0399475448 | AJ16: 0.1790524552 | AK16: 0.219 | AM16: 0.573 | AN16: 0.353 | AO16: 0.074 | AP16: 12.2 | AQ16: 5.40734407
B17: 2.4 | D17: =AC17 -> 35-Corn Silage-CoSi | M17: ----------- | R17: % of Forage | S17: 0 | AB17: 1 | AC17: 35-Corn Silage-CoSi | AI17: 0.0317 | AJ17: 0.0561 | AK17: =SUM(AI17:AJ17) -> 0.0878 | AM17: 0.51 | AN17: 0.302 | AO17: 0.185 | AP17: 4.4 | AQ17: =3.054+0.614*(DMI/BW)*100 -> 5.40734407
B18: 2.4 | D18: Crude Protein in Diet Provided by Forage | P18: ---------------------------- | W18: lb/cow/day | X18: =DMI*CP_F -> 4.118352123 | AI18: =$Q$14*SUMPRODUCT($S$15:$S$17,AI15:AI17) -> 0.01772009958 | AJ18: =$Q$14*SUMPRODUCT($S$15:$S$17,AJ15:AJ17) -> 0.05896390042 | AK18: =$Q$14*SUMPRODUCT($S$15:$S$17,AK15:AK17) -> 0.07675
AI19: =V42-AI18 -> 0.04727990042 | AJ19: =V43-AJ18 -> 0.05603609958 | AK19: =V44-AK17 -> 0.0922
B20: 3 | C20: Set Source of Energy Supplements and Prices
N21: Price | R21: Current | V21: Upper | X21: Optimal | AB21: RUP(%) | AD21: RDP(%) | AF21: CP(%)
N22: ($/bu) | R22: Diet (lb) | V22: Limit (lb) | X22: (lb)
B23: 3.1 | D23: 27-Corn-CGG | N23: 3.54 | R23: 20.88 | V23: 25 | X23: 17.62440332 | Z23: 15 | AB23: =$X23/DMI*$AI23 -> 0.01441136702 | AD23: =$X23/DMI*$AJ23 -> 0.01646293755 | AF23: =$X23/DMI*$AK23 -> 0.03087430456 | AI23: =AK23*(AN23*(AQ23/(AP23+AQ23))+AO23) -> 0.04387689112 | AJ23: =AK23*(AM23+AN23*(AP23/(AP23+AQ23))) -> 0.05012310888 | AK23: 0.094 | AM23: 0.239 | AN23: 0.725 | AO23: 0.036 | AP23: 4.9 | AQ23: =2.904+1.375*(DMI/BW)*100-0.02*(100-Forage*100) -> 7.174110907
B24: 3.2 | D24: 8-Barley-BGR | N24: 4.8 | V24: 0 | X24: 0 | Z24: 0 | AB24: =$X24/DMI*$AI24 -> 0 | AD24: =$X24/DMI*$AJ24 -> 0 | AF24: =$X24/DMI*$AK24 -> 0 | AI24: =AK24*(AN24*(AQ24/(AP24+AQ24))+AO24) -> 0.02888810482 | AJ24: =AK24*(AM24+AN24*(AP24/(AP24+AQ24))) -> 0.09511189518 | AK24: 0.124 | AM24: 0.302 | AN24: 0.612 | AO24: 0.086 | AP24: 22.7 | AQ24: =2.904+1.375*(DMI/BW)*100-0.02*(100-Forage*100) -> 7.174110907
B25: 3.3 | D25: 116-Wheat-WGR | N25: 7.4 | V25: 0 | X25: 0 | Z25: 10 | AB25: =$X25/DMI*$AI25 -> 0 | AD25: =$X25/DMI*$AJ25 -> 0 | AF25: =$X25/DMI*$AK25 -> 0 | AI25: =AK25*(AN25*(AQ25/(AP25+AQ25))+AO25) -> 0.03660869919 | AJ25: =AK25*(AM25+AN25*(AP25/(AP25+AQ25))) -> 0.1053913008 | AK25: 0.142 | AM25: 0.271 | AN25: 0.651 | AO25: 0.078 | AP25: 18.8 | AQ25: =2.904+1.375*(DMI/BW)*100-0.02*(100-Forage*100) -> 7.174110907
B27: 4 | C27: Set the Source of Protein, Byproduct Supplements and Prices
N28: Price | R28: Current | V28: Upper | X28: Optimal
N29: ($/ton) | R29: Diet (lb) | V29: Limit (lb) | X29: (lb)
B30: 4.1 | D30: 106-Soybean Meal-SBM | N30: 300 | R30: 5.95 | V30: 25 | X30: 4.205252205 | Z30: 15 | AB30: =$X30/DMI*$AI30 -> 0.01327384079 | AD30: =$X30/DMI*$AJ30 -> 0.02583252881 | AF30: =$X30/DMI*$AK30 -> 0.0391063696 | AI30: =AK30*(AN30*(AQ30/(AP30+AQ30))+AO30) -> 0.1693751331 | AJ30: =AK30*(AM30+AN30*(AP30/(AP30+AQ30))) -> 0.3296248669 | AK30: 0.499 | AM30: 0.225 | AN30: 0.768 | AO30: 0.007 | AP30: 9.4 | AQ30: =2.904+1.375*(DMI/BW)*100-0.02*(100-Forage*100) -> 7.174110907
B31: 4.2 | D31: 25-Corn Gluten Meal-CGM | N31: 550 | V31: 0 | X31: 0 | Z31: 2 | AB31: 0 | AD31: 0 | AF31: 0 | AI31: 0.4812112105 | AJ31: 0.1687887895 | AK31: 0.65 | AM31: 0.039 | AN31: 0.909 | AO31: 0.052 | AP31: 2.3 | AQ31: 7.174110907
B32: 4.3 | D32: 24-Corn Gluten Feed-CGF | N32: 160 | V32: 0 | X32: 0 | Z32: 10 | AB32: 0 | AD32: 0 | AF32: 0 | AI32: 0.07053441865 | AJ32: 0.1674655813 | AK32: 0.238 | AM32: 0.48 | AN32: 0.432 | AO32: 0.088 | AP32: 7.7 | AQ32: 7.174110907
B33: 4.4 | D33: 23-Corn Distiller Grains-CDG | N33: 140 | V33: 5 | X33: 5 | Z33: 10 | AB33: 0.01393396734 | AD33: 0.01374063322 | AF33: 0.02767460057 | AI33: 0.1495374176 | AJ33: 0.1474625824 | AK33: 0.297 | AM33: 0.285 | AN33: 0.633 | AO33: 0.082 | AP33: 3.6 | AQ33: 7.174110907
B34: 4.5 | D34: 109-Soybean Whole Roasted- HSB | N34: 318 | V34: 0 | X34: 0 | Z34: 7 | AB34: 0 | AD34: 0 | AF34: 0 | AI34: 0.1665467264 | AJ34: 0.2634532736 | AK34: 0.43 | AM34: 0.178 | AN34: 0.77 | AO34: 0.052 | AP34: 9.3 | AQ34: 7.174110907
B35: 4.6 | D35: 104-Soybean Meal Expellers-SBMx | N35: 402 | V35: 0 | X35: 0 | Z35: 15 | AB35: 0 | AD35: 0 | AF35: 0 | AI35: 0.3167534843 | AJ35: 0.1462465157 | AK35: 0.463 | AM35: 0.087 | AN35: 0.913 | AO35: 0 | AP35: 2.4 | AQ35: 7.174110907
B36: 4.7 | D36: 14-Blood Meal Ring Dried-BMRD | N36: 900 | V36: 0 | X36: 0 | Z36: 1 | AB36: 0 | AD36: 0 | AF36: 0 | AI36: 0.7367666229 | AJ36: 0.2182333771 | AK36: 0.955 | AM36: 0.101 | AN36: 0.609 | AO36: 0.29 | AP36: 1.9 | AQ36: 7.174110907
B37: 4.8 | D37: Urea | N37: 635 | V37: 0 | X37: 0 | Z37: 1 | AB37: 0 | AD37: 0 | AF37: 0 | AI37: 0 | AJ37: 2.81 | AK37: 2.81
B39: 5 | C39: Set the Upper Limits for RUP and RDP, and Milk Price
V40: Upper | X40: Amount | AB40: FCM | AD40: =MP*0.4+MP*0.035*15 -> 74
V41: Limit | X41: in Diet | AB41: DMIf | AD41: =SUM(grains,protein)+DMI*Forage -> 53.65931105
B42: 5.1 | D42: RUP | F42: Rumen Undegradable Protein | U42: % of Diet DM | V42: 0.065 | X42: =SUM(AB30:AC37,AB23:AC25,AI18) -> 0.05933927473
B43: 5.2 | D43: RDP | F43: Rumen Degradable Protein | U43: % of Diet DM | V43: 0.115 | X43: =SUM(AD30:AE37,AD23:AE25,AJ18) -> 0.115
B44: 5.3 | D44: CP | F44: Crude Protein | U44: % of Diet DM | V44: =SUM(V42:V43) -> 0.18 | X44: =SUM(AF30:AG37,AF23:AG25,CP_F) -> 0.1744052747
B45: 5.4 | D45: Milk Price | M45: $/cwt | N45: 9.4
B47: 6 | C47: Perform Optimization, Maximize IOFSC
B48: 6.1 | D48: Click the button to maximize the Income
D49: Over Feed Supplement Cost (IOFSC)
V50: Current | X50: Optimal
B51: 6.2 | D51: Expected Milk Producion (E-MP) | U51: lb/cow/day | V51: 78.83909745 | X51: =(-55.61+1.15*(AD41*0.454)+8.79*X43*100-0.36*(X43*100)^2+1.85*X42*100)/0.454 -> 81.18566547
B52: 6.3 | D52: Maximum Income Over Feed Supplement Cost (IOFSC) | U52: $/cow/day | V52: 5.198460875 | X52: =(fMP*MPrice/100)-(SUMPRODUCT(protein/2000,N30:N37)+(N23*X23/56+N24*X24/48+N25*X25/60)) -> 5.536550657
B55: 7 | C55: Perform a Substitution Analysis
B56: 7.1 | D56: Select an ENERGY supplement | AA56: 1
B57: 7.2 | D57: Select a PROTEIN/BYPRODUCT supplement | AA57: 1
B58: 7.3.a | D58: Select one of the following to change its price | Q58: ------------- | AA58: 2
B59: 7.3.b | D59: Define the upper (↑) and lower (↓) limit in the price ---- | T59: ↑ | U59: 0.51 | W59: ↓ | X59: 0.5
B60: 7.4 | D60: Click the button to update the results
D61: of sections 8, 9, and 10
B63: 8 | C63: IOFSC and Milk Production when Substituting Energy for Protein/Byproducts
B83: 9 | C83: Change in IOFSC at Upper and Lower Selected Prices
B103: =X23 -> 17.62440332 | D103: =X30 -> 4.205252205 | F103: =X42 -> 0.05933927473 | H103: =X43 -> 0.115 | J103: =X44 -> 0.1744052747 | L103: =X51 -> 81.18566547 | R103: =X52 -> 5.536550657 | V103: =X52 -> 5.536550657 | X103: =X52 -> 5.536550657
B104: 10 | C104: IOFSC and Milk Production when Substituting Feed Supplements and Changing Selected Prices
B105: Energy | D105: Protein | F105: RUP | H105: RDP | J105: CP | L105: Milk | R105: IOFSCbase | V105: IOFSCupper | X105: IOFSClower
B106: 23.17106613 | D106: 3.65858939 | F106: 0.04821524345 | H106: 0.1030823929 | J106: 0.1513636364 | L106: 74.18775922 | R106: 4.960118563 | V106: 5.240000651 | X106: 4.685724359
B107: 22.7645562 | D107: 4.065099322 | F107: 0.04916598771 | H107: 0.1051998305 | J107: 0.1544318182 | L107: 75.17768594 | R107: 5.01789242 | V107: 5.328872518 | X107: 4.713009971
B108: 22.35804627 | D108: 4.471609254 | F108: 0.05011673197 | H108: 0.107317268 | J108: 0.1575 | L108: 76.09650804 | R108: 5.068982442 | V108: 5.41106055 | X108: 4.733611748
B109: 21.95153634 | D109: 4.878119186 | F109: 0.05106747622 | H109: 0.1094347056 | J109: 0.1605681818 | L109: 76.9442255 | R109: 5.113388629 | V109: 5.486564747 | X109: 4.747529691
B110: 21.54502641 | D110: 5.284629118 | F110: 0.05201822048 | H110: 0.1115521432 | J110: 0.1636363636 | L110: 77.72083834 | R110: 5.151110982 | V110: 5.555385109 | X110: 4.754763798
B111: 21.13851647 | D111: 5.691139051 | F111: 0.05296896474 | H111: 0.1136695807 | J111: 0.1667045455 | L111: 78.42634656 | R111: 5.182149499 | V111: 5.617521636 | X111: 4.75531407
B112: 20.73200654 | D112: 6.097648983 | F112: 0.053919709 | H112: 0.1157870183 | J112: 0.1697727273 | L112: 79.06075014 | R112: 5.206504181 | V112: 5.672974328 | X112: 4.749180507
B113: 20.32549661 | D113: 6.504158915 | F113: 0.05487045325 | H113: 0.1179044558 | J113: 0.1728409091 | L113: 79.62404909 | R113: 5.224175028 | V113: 5.721743185 | X113: 4.736363109
B114: 19.91898668 | D114: 6.910668847 | F114: 0.05582119751 | H114: 0.1200218934 | J114: 0.1759090909 | L114: 80.11624342 | R114: 5.23516204 | V114: 5.763828206 | X114: 4.716861876
B115: 19.51247675 | D115: 7.317178779 | F115: 0.05677194177 | H115: 0.122139331 | J115: 0.1789772727 | L115: 80.53733312 | R115: 5.239465217 | V115: 5.799229393 | X115: 4.690676808

Sheet IOFSC-M (hidden)
B1: Income Over Feed Supplement Cost (IOFSC)®
I2: Overwrite | L2: yellow | N2: cells and make aproppriate selections. | W2: Units
I3: Click on blue button to optimize IOFSC: results appear in
B4: V.E. Cabrera, R.D. Shaver, and M.A. Wattiaux | I4: blue | K4: cells. Click on red button to substitute between
I5: feed supplements: results appear in figures and table. | Z5: TRUE | AB5: 1 | AC5: 2 | AD5: 3 | AE5: 4 | AF5: 5 | AG5: 6 | AH5: 7 | AI5: 8 | AJ5: 9 | AK5: 10 | AL5: 11 | AM5: 12 | AN5: 13 | AO5: 14 | AP5: 15 | AQ5: 16
AI6: RUP(%) | AJ6: RDP(%) | AK6: CP(%) | AM6: A | AN6: B | AO6: C | AP6: Kd | AQ6: Kp
B7: 1 | C7: Calculate Dry Matter Intake (DMI) | AB7: 1 | AC7: 35-Corn Silage-CoSi | AI7: =AK7*(AN7*(AQ7/(AP7+AQ7))+AO7) -> 0.03189348693 | AJ7: =AK7*(AM7+AN7*(AP7/(AP7+AQ7))) -> 0.05584251307 | AK7: 0.088 | AM7: 0.51 | AN7: 0.302 | AO7: 0.185 | AP7: 4.4 | AQ7: =3.054+0.614*(DMI/BW)*100 -> 6.266751254
B8: 1.1 | D8: Milk Producion (MP) | P8: kg/cow/day | Q8: 60 | AB8: 2 | AC8: 83-Alf. Silage-AlSi | AI8: 0.04244037834 | AJ8: 0.1765596217 | AK8: 0.219 | AM8: 0.573 | AN8: 0.353 | AO8: 0.074 | AP8: 12.2 | AQ8: =3.054+0.614*(DMI/BW)*100 -> 6.266751254
B9: 1.2 | D9: Body Weight (BW) | P9: kg/cow | Q9: 625 | AB9: 3 | AC9: 74-Mx. Silage-MxSi | AI9: 0.03906268579 | AJ9: 0.1509373142 | AK9: 0.19 | AM9: 0.581 | AN9: 0.342 | AO9: 0.077 | AP9: 10.4 | AQ9: =3.054+0.614*(DMI/BW)*100 -> 6.266751254
B10: 1.3 | D10: Days in Milk (DIM) | P10: day | Q10: 180 | AB10: 4 | AC10: 77-Hay Forage- | AI10: 0.03477761278 | AJ10: 0.1672223872 | AK10: 0.202 | AM10: 0.419 | AN10: 0.492 | AO10: 0.089 | AP10: 16.6 | AQ10: =3.362+0.479*(DMI/BW)-0.007*(1-Q14)-0.017*0.396 -> 3.376831646
B11: 1.4 | D11: Dry Matter Intake (DMI) | W11: kg/cow/day | X11: =((0.372*(FCMkg)+0.0968*(BW)^0.75*(1-EXP(1)^(-0.192*((DIM/7)+3.67))))) -> 32.70308687 | AB11: 5 | AC11: 82-Silage Inmature<40% NDF-Si40 | AI11: 0.03541380112 | AJ11: 0.1965861989 | AK11: 0.232 | AM11: 0.616 | AN11: 0.291 | AO11: 0.093 | AP11: 13.1 | AQ11: =3.362+0.479*(DMI/BW)-0.007*(1-Forage)-0.017*0.367 -> 3.377324646
AB12: 6 | AC12: 83-Silage Inmature 40-46% NDF-Si43 | AI12: 0.03296265971 | AJ12: 0.1860373403 | AK12: 0.219 | AM12: 0.573 | AN12: 0.353 | AO12: 0.074 | AP12: 12.2 | AQ12: =3.362+0.479*(DMI/BW)-0.007*(1-Forage)-0.017*0.432 -> 3.376219646
B13: 2 | C13: Set the Sources and Proportion of Forage in the Diet | AB13: 7 | AC13: 84-Silage Inmature>46% NDF-Si50 | AI13: 0.04650065941 | AJ13: 0.1564993406 | AK13: 0.203 | AM13: 0.529 | AN13: 0.344 | AO13: 0.127 | AP13: 8 | AQ13: =3.362+0.479*(DMI/BW)-0.007*(1-Forage)-0.017*0.5 -> 3.375063646
B14: 2.1 | D14: Proportion of Forage in Diet | L14: --------- | P14: % of Diet | Q14: 0.5
B15: 2.2 | D15: Corn Silage | M15: ----------- | R15: % of Forage | S15: 0.5 | Z15: =SUM(S15:T17) -> 1 | AB15: 1 | AC15: =VLOOKUP($AB15,$AB$7:$AQ$13,$AC$5,) -> 35-Corn Silage-CoSi | AI15: =VLOOKUP($AB15,$AB$7:$AQ$13,AI$5,TRUE) -> 0.03189348693 | AJ15: 0.05584251307 | AK15: 0.088 | AM15: 0.51 | AN15: 0.302 | AO15: 0.185 | AP15: 4.4 | AQ15: 6.266751254
B16: 2.3 | D16: Alfalfa | M16: ----------- | R16: % of Forage | S16: 0.5 | AB16: 2 | AC16: =VLOOKUP($AB16,$AB$7:$AQ$13,$AC$5,) -> 83-Alf. Silage-AlSi | AI16: 0.04244037834 | AJ16: 0.1765596217 | AK16: 0.219 | AM16: 0.573 | AN16: 0.353 | AO16: 0.074 | AP16: 12.2 | AQ16: 6.266751254
B17: 2.4 | D17: Mixed | M17: ----------- | R17: % of Forage | S17: 0 | AB17: 2 | AC17: =VLOOKUP($AB17,$AB$7:$AQ$13,$AC$5,) -> 83-Alf. Silage-AlSi | AI17: 0.04244037834 | AJ17: 0.1765596217 | AK17: 0.219 | AM17: 0.573 | AN17: 0.353 | AO17: 0.074 | AP17: 12.2 | AQ17: 6.266751254
B18: 2.4 | D18: Crude Protein in Diet Provided by Forage | P18: ---------------------------- | W18: kg/cow/day | X18: =DMI*CP_F -> 2.509961917 | AI18: =$Q$14*SUMPRODUCT($S$15:$S$17,AI15:AI17) -> 0.01858346632 | AJ18: =$Q$14*SUMPRODUCT($S$15:$S$17,AJ15:AJ17) -> 0.05810053368 | AK18: =$Q$14*SUMPRODUCT($S$15:$S$17,AK15:AK17) -> 0.07675
B20: 3 | C20: Set Source of Energy Supplements and Prices
N21: Price | R21: Current | V21: Upper | X21: Optimal | AB21: RUP(%) | AD21: RDP(%) | AF21: CP(%)
N22: ($/kg) | R22: Diet (kg) | V22: Limit (kg) | X22: (kg)
B23: 3.1 | D23: 27-Corn-CGG | N23: 0.224 | R23: 12 | V23: 10 | X23: 7.811370349 | AB23: =$X23/DMI*$AI23 -> 0.01138853577 | AD23: =$X23/DMI*$AJ23 -> 0.01106404848 | AF23: =$X23/DMI*$AK23 -> 0.02245258424 | AI23: =AK23*(AN23*(AQ23/(AP23+AQ23))+AO23) -> 0.04767924932 | AJ23: =AK23*(AM23+AN23*(AP23/(AP23+AQ23))) -> 0.04632075068 | AK23: 0.094 | AM23: 0.239 | AN23: 0.725 | AO23: 0.036 | AP23: 4.9 | AQ23: =2.904+1.375*(DMI/BW)*100-0.02*(100-Forage*100) -> 9.098679111
B24: 3.2 | D24: 8-Barley-BGR | N24: 0.218 | V24: 0 | X24: 0 | AB24: =$X24/DMI*$AI24 -> 0 | AD24: =$X24/DMI*$AJ24 -> 0 | AF24: =$X24/DMI*$AK24 -> 0 | AI24: =AK24*(AN24*(AQ24/(AP24+AQ24))+AO24) -> 0.03237812712 | AJ24: =AK24*(AM24+AN24*(AP24/(AP24+AQ24))) -> 0.09162187288 | AK24: 0.124 | AM24: 0.302 | AN24: 0.612 | AO24: 0.086 | AP24: 22.7 | AQ24: =2.904+1.375*(DMI/BW)*100-0.02*(100-Forage*100) -> 9.098679111
B25: 3.3 | D25: 116-Wheat-WGR | N25: 0.272 | V25: 10 | X25: 0 | AB25: =$X25/DMI*$AI25 -> 0 | AD25: =$X25/DMI*$AJ25 -> 0 | AF25: =$X25/DMI*$AK25 -> 0 | AI25: =AK25*(AN25*(AQ25/(AP25+AQ25))+AO25) -> 0.04122438412 | AJ25: =AK25*(AM25+AN25*(AP25/(AP25+AQ25))) -> 0.1007756159 | AK25: 0.142 | AM25: 0.271 | AN25: 0.651 | AO25: 0.078 | AP25: 18.8 | AQ25: =2.904+1.375*(DMI/BW)*100-0.02*(100-Forage*100) -> 9.098679111
B27: 4 | C27: Set the Source of Protein, Byproduct Supplements and Prices
N28: Price | R28: Current | V28: Upper | X28: Optimal
N29: ($/kg) | R29: Diet (kg) | V29: Limit (kg) | X29: (kg)
B30: 4.1 | D30: 106-Soybean Meal-SBM | N30: 0.4 | R30: 3.33 | V30: 10 | X30: 0 | AB30: =$X30/DMI*$AI30 -> 0 | AD30: =$X30/DMI*$AJ30 -> 0 | AF30: =$X30/DMI*$AK30 -> 0 | AI30: =AK30*(AN30*(AQ30/(AP30+AQ30))+AO30) -> 0.1919878094 | AJ30: =AK30*(AM30+AN30*(AP30/(AP30+AQ30))) -> 0.3070121906 | AK30: 0.499 | AM30: 0.225 | AN30: 0.768 | AO30: 0.007 | AP30: 9.4 | AQ30: =2.904+1.375*(DMI/BW)*100-0.02*(100-Forage*100) -> 9.098679111
B31: 4.2 | D31: 25-Corn Gluten Meal-CGM | N31: 0.606 | V31: 10 | X31: 0 | AB31: 0 | AD31: 0 | AF31: 0 | AI31: =AK31*(AN31*(AQ31/(AP31+AQ31))+AO31) -> 0.5054296073 | AJ31: =AK31*(AM31+AN31*(AP31/(AP31+AQ31))) -> 0.1445703927 | AK31: 0.65 | AM31: 0.039 | AN31: 0.909 | AO31: 0.052 | AP31: 2.3 | AQ31: 9.098679111
B32: 4.3 | D32: 24-Corn Gluten Feed-CGF | N32: 0.176 | V32: 2 | X32: 2 | AB32: 0.004686548088 | AD32: 0.00986865283 | AF32: 0.01455520092 | AI32: 0.07663229462 | AJ32: 0.1613677054 | AK32: 0.238 | AM32: 0.48 | AN32: 0.432 | AO32: 0.088 | AP32: 7.7 | AQ32: 9.098679111
B33: 4.4 | D33: 23-Corn Distiller Grains-CDG | N33: 0.5 | V33: 10 | X33: 0 | AB33: 0 | AD33: 0 | AF33: 0 | AI33: 0.1590578347 | AJ33: 0.1379421653 | AK33: 0.297 | AM33: 0.285 | AN33: 0.633 | AO33: 0.082 | AP33: 3.6 | AQ33: 9.098679111
B34: 4.5 | D34: 109-Soybean Whole Roasted- HSB | N34: 0.35 | V34: 10 | X34: 3.874124645 | AB34: 0.0220458974 | AD34: 0.02889344066 | AF34: 0.05093933805 | AI34: 0.186098529 | AJ34: 0.243901471 | AK34: 0.43 | AM34: 0.178 | AN34: 0.77 | AO34: 0.052 | AP34: 9.3 | AQ34: 9.098679111
B35: 4.6 | D35: 104-Soybean Meal Expellers-SBMx | N35: 0.443 | V35: 10 | X35: 0.9455484398 | AB35: 0.009671129467 | AD35: 0.003715647426 | AF35: 0.01338677689 | AI35: 0.3344892485 | AJ35: 0.1285107515 | AK35: 0.463 | AM35: 0.087 | AN35: 0.913 | AO35: 0 | AP35: 2.4 | AQ35: 9.098679111
B36: 4.7 | D36: 14-Blood Meal Ring Dried-BMRD | N36: 0.992 | V36: 0.454 | X36: 0 | AB36: 0 | AD36: 0 | AF36: 0 | AI36: 0.7580756174 | AJ36: 0.1969243826 | AK36: 0.955 | AM36: 0.101 | AN36: 0.609 | AO36: 0.29 | AP36: 1.9 | AQ36: 9.098679111
B37: 4.8 | D37: Urea | N37: 0.7 | V37: 0.454 | X37: 0 | AB37: 0 | AD37: 0 | AF37: 0 | AI37: 0 | AJ37: 2.81 | AK37: 2.81
B39: 5 | C39: Set the Upper Limits for RUP and RDP, and Milk Price
V40: Upper | X40: Amount | AB40: FCM | AD40: =MP*0.4+MP*0.035*15 -> 55.5
V41: Limit | X41: in Diet | AB41: DMIf | AD41: =SUM(grains,protein)+DMI*Forage -> 30.98258687
B42: 5.1 | D42: RUP | F42: Rumen Undegradable Protein | U42: % of Diet DM | V42: 0.07 | X42: =SUM(AB30:AC37,AB23:AC25,AI18) -> 0.06637557704
B43: 5.2 | D43: RDP | F43: Rumen Degradable Protein | U43: % of Diet DM | V43: 0.12 | X43: =SUM(AD30:AE37,AD23:AE25,AJ18) -> 0.1116423231
B44: 5.3 | D44: CP | F44: Crude Protein | U44: % of Diet DM | V44: =SUM(V42:V43) -> 0.19 | X44: =SUM(AF30:AG37,AF23:AG25,CP_F) -> 0.1780839001
B45: 5.4 | D45: Milk Price | M45: $/kg | N45: 0.33
B47: 6 | C47: Perform Optimization, Maximize IOFSC
B48: 6.1 | D48: Click button to maximize the Income
D49: Over Feed Supplement Cost (IOFSC)
V50: Current | X50: Optimal
B51: 6.2 | D51: Expected Milk Producion (E-MP) | U51: kg/cow/day | V51: 43.01579227 | X51: =-55.61+1.15*AD41+8.79*X43*100-0.36*(X43*100)^2+1.85*X42*100 -> 45.56262875
B52: 6.3 | D52: Maximum Income Over Feed Supplement Cost (IOFSC) | U52: $/cow/day | V52: 14.04663275 | X52: =(fMP*MPrice)-(SUMPRODUCT(protein,N30:N37)+SUMPRODUCT(grains,N23:N25)) -> 11.15909894
B55: 7 | C55: Perform a Substitution Analysis
B56: 7.1 | D56: Select an ENERGY supplement | AA56: 1
B57: 7.2 | D57: Select a PROTEIN/BYPRODUCT supplement | AA57: 1
B58: 7.3.a | D58: Select one of the following to change its price | Q58: ------------- | AA58: 3
B59: 7.3.b | D59: Define the upper (↑) and lower (↓) limit in the price ---- | T59: ↑ | U59: 0 | W59: ↓ | X59: 0.26
B60: 7.4 | D60: Click the button to update the results
D61: of sections 8, 9, and 10
B63: 8 | C63: IOFSC and Milk Production when Substituting Energy for Protein/Byproducts
B83: 9 | C83: Change in IOFSC at Upper and Lower Selected Prices
B103: =X23 -> 7.811370349 | D103: =X30 -> 0 | F103: =X42 -> 0.06637557704 | H103: =X43 -> 0.1116423231 | J103: =X44 -> 0.1780839001 | L103: =X51 -> 45.56262875 | R103: =X52 -> 11.15909894 | V103: =X52 -> 11.15909894 | X103: =X52 -> 11.15909894
B104: 10 | C104: IOFSC and Milk Production when Substituting Feed Supplements and Changing Selected Prices
B105: Energy | D105: Protein | F105: RUP | H105: RDP | J105: CP | L105: Milk | R105: IOFSCbase | V105: IOFSCupper | X105: IOFSClower
B106: 12.63590115 | D106: 1.995142286 | F106: 0.05077908892 | H106: 0.1005185474 | J106: 0.1513636364 | L106: 39.41701238 | R106: 12.92664643 | V106: 12.92664643 | X106: 17.23098418
B107: 12.41421867 | D107: 2.216824763 | F107: 0.05181971826 | H107: 0.1025460999 | J107: 0.1544318182 | L107: 39.90954021 | R107: 13.094492 | V107: 13.094492 | X107: 17.45261379
B108: 12.1925362 | D108: 2.438507239 | F108: 0.05286034759 | H108: 0.1045736524 | J108: 0.1575 | L108: 40.37246907 | R108: 13.24990601 | V108: 13.24990601 | X108: 17.65857963
B109: 11.97085372 | D109: 2.660189715 | F109: 0.05390097693 | H109: 0.1066012049 | J109: 0.1605681818 | L109: 40.80579895 | R109: 13.39288844 | V109: 13.39288844 | X109: 17.84888168
B110: 11.74917124 | D110: 2.881872192 | F110: 0.05494160626 | H110: 0.1086287574 | J110: 0.1636363636 | L110: 41.20952985 | R110: 13.5234393 | V110: 13.5234393 | X110: 18.02351996
B111: 11.52748877 | D111: 3.103554668 | F111: 0.0559822356 | H111: 0.1106563099 | J111: 0.1667045455 | L111: 41.58366177 | R111: 13.64155859 | V111: 13.64155859 | X111: 18.18249446
B112: 11.30580629 | D112: 3.325237144 | F112: 0.05702286493 | H112: 0.1126838623 | J112: 0.1697727273 | L112: 41.92819471 | R112: 13.74724631 | V112: 13.74724631 | X112: 18.32580518
B113: 11.08412381 | D113: 3.54691962 | F113: 0.05806349427 | H113: 0.1147114148 | J113: 0.1728409091 | L113: 42.24312868 | R113: 13.84050246 | V113: 13.84050246 | X113: 18.45345212
B114: 10.86244134 | D114: 3.768602097 | F114: 0.0591041236 | H114: 0.1167389673 | J114: 0.1759090909 | L114: 42.52846367 | R114: 13.92132704 | V114: 13.92132704 | X114: 18.56543528
B115: 10.64075886 | D115: 3.990284573 | F115: 0.06014475294 | H115: 0.1187665198 | J115: 0.1789772727 | L115: 42.78419968 | R115: 13.98972005 | V115: 13.98972005 | X115: 18.66175466
B116: 10.41907638 | D116: 4.211967049 | F116: 0.06118538227 | H116: 0.1207940723 | J116: 0.1820454545 | L116: 43.01033672 | R116: 14.04568149 | V116: 14.04568149 | X116: 18.74241026
B117: 10.19739391 | D117: 4.433649526 | F117: 0.06222601161 | H117: 0.1228216248 | J117: 0.1851136364 | L117: 43.20687478 | R117: 14.08921136 | V117: 14.08921136 | X117: 18.80740209
B118: 9.975711432 | D118: 4.655332002 | F118: 0.06326664094 | H118: 0.1248491772 | J118: 0.1881818182 | L118: 43.37381386 | R118: 14.12030966 | V118: 14.12030966 | X118: 18.85673013

Sheet MSGC-Arg
B1: Margen Sobre Gastos en Concentrados (MSGC)®
I2: Rellenar las celdas | L2: Amarillas | O2: y hacer las selecciones apropiadas.
I3: Hacer Click en el boton azul para optimizar MSGC: Los resultados aparecen en
B4: V.E. Cabrera, R.D. Shaver, and M.A. Wattiaux | I4: en las celdas | K4: Azules. | M4: Hacer Click en el boton rojo para la sustitución de
I5: alimentos concentrados: Los resultados aparecen en los gráficos y la tabla. | Z5: TRUE | AB5: 1 | AC5: 2 | AD5: 3 | AE5: 4 | AF5: 5 | AG5: 6 | AH5: 7 | AI5: 8 | AJ5: 9 | AK5: 10 | AL5: 11 | AM5: 12 | AN5: 13 | AO5: 14 | AP5: 15 | AQ5: 16
AI6: RUP(%) | AJ6: RDP(%) | AK6: CP(%) | AM6: A | AN6: B | AO6: C | AP6: Kd | AQ6: Kp
B7: 1 | C7: Calcular el Consumo de Materia Seca (CMS) | AB7: 1 | AC7: 35-Silaje de Maíz 45%FDN-SiMz45 | AI7: =AK7*(AN7*(AQ7/(AP7+AQ7))+AO7) -> 0.02996029772 | AJ7: =AK7*(AM7+AN7*(AP7/(AP7+AQ7))) -> 0.05478470228 | AK7: 0.085 | AM7: 0.51 | AN7: 0.302 | AO7: 0.185 | AP7: 4.4 | AQ7: =3.054+0.614*(DMI/BW)*100 -> 5.477651135
B8: 1.1 | D8: Producción de Leche (PL) | P8: Lts/vaca/día | Q8: 35 | AB8: 2 | AC8: 83-Silaje de Alfalfa 43%FDN-SiAl45 | AI8: =AK8*(AN8*(AQ8/(AP8+AQ8))+AO8) -> 0.03575942397 | AJ8: 0.159240576 | AK8: 0.195 | AM8: 0.573 | AN8: 0.353 | AO8: 0.074 | AP8: 12.2 | AQ8: =3.054+0.614*(DMI/BW)*100 -> 5.477651135
B9: 1.2 | D9: Peso Corporal (PC) | P9: kg/vaca | Q9: 600 | AB9: 3 | AC9: 102-Silaje de Sorgo 65%FDN-SiSo65 | AI9: 0.04538371328 | AJ9: 0.04461628672 | AK9: 0.09 | AM9: 0.376 | AN9: 0.297 | AO9: 0.327 | AP9: 3.7 | AQ9: =3.054+0.614*(DMI/BW)*100 -> 5.477651135
B10: 1.3 | D10: Días en Leche (DEL) | P10: días | Q10: 150 | AB10: 4 | AC10: 79-Heno de Alfalfa 50%FDN-HeAl43 | AI10: 0.03591452977 | AJ10: 0.1340854702 | AK10: 0.17 | AM10: 0.389 | AN10: 0.496 | AO10: 0.115 | AP10: 14 | AQ10: =3.362+0.479*(DMI/BW)-0.007*(1-Q14)-0.017*0.396 -> 3.371375637
B11: 1.4 | D11: Consumo de Materia Seca (CMS) | W11: kg/vaca/día | X11: =((0.372*(FCMkg)+0.0968*(BW*1)^0.75*(1-EXP(1)^(-0.192*((DIM/7)+3.67))))) -> 23.68388731 | AB11: 5 | AC11: 76-Pastura Alfalfa 10%Floración-PaAl10 | AI11: 0.04521769959 | AJ11: 0.1747823004 | AK11: 0.22 | AM11: 0.311 | AN11: 0.616 | AO11: 0.073 | AP11: 12.3 | AQ11: =3.362+0.479*(DMI/BW)-0.007*(1-Forage)-0.017*0.367 -> 3.371868637
AB12: 6 | AC12: 76a-Pastura Alfalfa 100%Floración-PaAl100 | AI12: 0.04083162046 | AJ12: 0.1182319795 | AK12: 0.159 | AM12: 0.286 | AN12: 0.583 | AO12: =7.3%*1.8 -> 0.1314 | AP12: 12.3 | AQ12: =3.362+0.479*(DMI/BW)-0.007*(1-Forage)-0.017*0.432 -> 3.370763637
B13: 2 | C13: Sellecionar las Fuentes y Proporción de Forraje en la Dieta | AB13: 7 | AC13: 10-Silaje de Cebada 55%FDN-SiCe45 | AI13: =AK13*(AN13*(AQ13/(AP13+AQ13))+AO13) -> 0.02897278544 | AJ13: =AK13*(AM13+AN13*(AP13/(AP13+AQ13))) -> 0.1000272146 | AK13: 0.129 | AM13: 0.566 | AN13: 0.329 | AO13: 0.105 | AP13: 5.9 | AQ13: =3.362+0.479*(DMI/BW)-0.007*(1-Forage)-0.017*0.5 -> 3.369607637
B14: 2.1 | D14: Proporción de Forraje en la Dieta | P14: % en la Dieta | Q14: 0.6
B15: 2.2 | D15: Corn Silage | R15: % del Forraje | S15: 0.4 | Z15: =SUM(S15:T17) -> 1 | AB15: 1 | AC15: =VLOOKUP($AB15,$AB$7:$AQ$13,$AC$5,) -> 35-Silaje de Maíz 45%FDN-SiMz45 | AI15: =VLOOKUP($AB15,$AB$7:$AQ$13,AI$5,TRUE) -> 0.02996029772 | AJ15: 0.05478470228 | AK15: 0.085 | AM15: 0.51 | AN15: 0.302 | AO15: 0.185 | AP15: 4.4 | AQ15: 5.477651135
B16: 2.3 | D16: Alfalfa | R16: % del Forraje | S16: 0 | AB16: 3 | AC16: =VLOOKUP($AB16,$AB$7:$AQ$13,$AC$5,) -> 102-Silaje de Sorgo 65%FDN-SiSo65 | AI16: 0.04538371328 | AJ16: 0.04461628672 | AK16: 0.09 | AM16: 0.376 | AN16: 0.297 | AO16: 0.327 | AP16: 3.7 | AQ16: 5.477651135
B17: 2.4 | D17: Mixed | R17: % del Forraje | S17: 0.6 | AB17: 2 | AC17: =VLOOKUP($AB17,$AB$7:$AQ$13,$AC$5,) -> 83-Silaje de Alfalfa 43%FDN-SiAl45 | AI17: 0.03575942397 | AJ17: 0.159240576 | AK17: 0.195 | AM17: 0.573 | AN17: 0.353 | AO17: 0.074 | AP17: 12.2 | AQ17: 5.477651135
B18: 2.5 | D18: Proteína Cruda (PC)en la Dieta Proveniente del Forraje | W18: kg/vaca/día | X18: =DMI*CP_F -> 2.14576019 | AI18: =$Q$14*SUMPRODUCT($S$15:$S$17,AI15:AI17) -> 0.02006386408 | AJ18: =$Q$14*SUMPRODUCT($S$15:$S$17,AJ15:AJ17) -> 0.07047493592 | AK18: =$Q$14*SUMPRODUCT($S$15:$S$17,AK15:AK17) -> 0.0906
B20: 3 | C20: Indicar la Canidad de Concentrados Energéticos en la Dieta y sus Precios (Base MS)
N21: Precio | R21: Dieta Actual | V21: Límite Máx | X21: Óptimo | AB21: RUP(%) | AD21: RDP(%) | AF21: CP(%)
N22: ($/kgMS) | R22: (kg/vaca) | V22: (kg/vaca) | X22: (kg/vaca)
B23: 3.1 | D23: 27-Maíz-GM | N23: 0.75 | R23: 6.5 | V23: 7 | X23: 1.104152903 | AB23: =$X23/DMI*$AI23 -> 0.002082633263 | AD23: =$X23/DMI*$AJ23 -> 0.00229968673 | AF23: =$X23/DMI*$AK23 -> 0.004382319992 | AI23: =AK23*(AN23*(AQ23/(AP23+AQ23))+AO23) -> 0.04467212048 | AJ23: =AK23*(AM23+AN23*(AP23/(AP23+AQ23))) -> 0.04932787952 | AK23: 0.094 | AM23: 0.239 | AN23: 0.725 | AO23: 0.036 | AP23: 4.9 | AQ23: =2.904+1.375*(DMI/BW)*100-0.02*(100-Forage*100) -> 7.531557508
B24: 3.2 | D24: 116-Trigo-GT | N24: 0.7 | V24: 1.5 | X24: 0 | AB24: =$X24/DMI*$AI24 -> 0 | AD24: =$X24/DMI*$AJ24 -> 0 | AF24: =$X24/DMI*$AK24 -> 0 | AI24: =AK24*(AN24*(AQ24/(AP24+AQ24))+AO24) -> 0.03672436974 | AJ24: =AK24*(AM24+AN24*(AP24/(AP24+AQ24))) -> 0.1022756303 | AK24: 0.139 | AM24: 0.271 | AN24: 0.651 | AO24: 0.078 | AP24: 18.8 | AQ24: =2.904+1.375*(DMI/BW)*100-0.02*(100-Forage*100) -> 7.531557508
B25: 3.3 | D25: 103-Cáscara de Soja-CS | N25: 0.65 | R25: 0 | V25: 4 | X25: 4 | AB25: =$X25/DMI*$AI25 -> 0.009782486056 | AD25: =$X25/DMI*$AJ25 -> 0.01200447794 | AF25: =$X25/DMI*$AK25 -> 0.02178696399 | AI25: =AK25*(AN25*(AQ25/(AP25+AQ25))+AO25) -> 0.05792182434 | AJ25: =AK25*(AM25+AN25*(AP25/(AP25+AQ25))) -> 0.07107817566 | AK25: 0.129 | AM25: 0.225 | AN25: 0.722 | AO25: 0.053 | AP25: 6.2 | AQ25: =2.904+1.375*(DMI/BW)*100-0.02*(100-Forage*100) -> 7.531557508
B27: 4 | C27: Indicar la Cantidad de Concentrados Proteicos en la Dieta y sus Precios (Base MS)
N28: Precio | R28: Dieta Actual | V28: Límite Máx | X28: Óptimo
N29: ($/kgMS) | R29: (kgMS/vaca) | V29: (kgMS/vaca) | X29: (kgMS/vaca)
B30: 4.1 | D30: 106-Harina de Soja Solvente 44%PB-ESjS | N30: 1.4 | R30: 3 | V30: 4 | X30: 0 | AB30: =$X30/DMI*$AI30 -> 0 | AD30: =$X30/DMI*$AJ30 -> 0 | AF30: =$X30/DMI*$AK30 -> 0 | AI30: =AK30*(AN30*(AQ30/(AP30+AQ30))+AO30) -> 0.1533948137 | AJ30: =AK30*(AM30+AN30*(AP30/(AP30+AQ30))) -> 0.2866051863 | AK30: 0.44 | AM30: 0.225 | AN30: 0.768 | AO30: 0.007 | AP30: 9.4 | AQ30: =2.904+1.375*(DMI/BW)*100-0.02*(100-Forage*100) -> 7.531557508
B31: 4.2 | D31: 25-Gluten Meal de Maíz-GMM | N31: 1.7 | V31: 0 | X31: 0 | AB31: 0 | AD31: 0 | AF31: 0 | AI31: =AK31*(AN31*(AQ31/(AP31+AQ31))+AO31) -> 0.4490088224 | AJ31: =AK31*(AM31+AN31*(AP31/(AP31+AQ31))) -> 0.1509911776 | AK31: 0.6 | AM31: 0.039 | AN31: 0.909 | AO31: 0.052 | AP31: 2.3 | AQ31: 7.531557508
B32: 4.3 | D32: 24-Gluten Feed de Maíz Seco-GFM | N32: 0.6 | V32: 0 | X32: 0 | AB32: 0 | AD32: 0 | AF32: 0 | AI32: 0.06032226057 | AJ32: 0.1396777394 | AK32: 0.2 | AM32: 0.48 | AN32: 0.432 | AO32: 0.088 | AP32: 7.7 | AQ32: 7.531557508
B33: 4.4 | D33: 111-Harina de Girasol Solvente 34%PB-EGiS | N33: 0.7 | V33: 3 | X33: 0 | AB33: 0 | AD33: 0 | AF33: 0 | AI33: 0.05448936218 | AJ33: 0.2855106378 | AK33: 0.34 | AM33: 0.42 | AN33: 0.528 | AO33: 0.052 | AP33: 29.2 | AQ33: 7.531557508
B34: 4.5 | D34: 37-Semilla de Algodón-SeAlg | N34: 0.63 | R34: 2 | V34: 3 | X34: 0.06500393179 | AB34: 0.0001365907238 | AD34: 0.0004562532246 | AF34: 0.0005928439484 | AI34: 0.04976620986 | AJ34: 0.1662337901 | AK34: 0.216 | AM34: 0.454 | AN34: 0.467 | AO34: 0.079 | AP34: 15.7 | AQ34: 7.531557508
B35: 4.6 | D35: 104-Harina de Soja Estrujado 42%PB-ESjE | N35: 1.35 | R35: 0 | V35: 3 | X35: 0.8043980894 | AB35: 0.009876556379 | AD35: 0.004388297745 | AF35: 0.01426485412 | AI35: 0.2907953803 | AJ35: 0.1292046197 | AK35: 0.42 | AM35: 0.087 | AN35: 0.913 | AO35: 0 | AP35: 2.4 | AQ35: 7.531557508
B36: 4.7 | D36: 39-Harina de Algodón Solvente 39%PB-EAlgS | N36: 0.8 | V36: 3.5 | X36: 3.5 | AB36: 0.02805786994 | AD36: 0.0303151489 | AF36: 0.05837301883 | AI36: 0.1898626942 | AJ36: 0.2051373058 | AK36: 0.395 | AM36: 0.256 | AN36: 0.555 | AO36: 0.189 | AP36: 6.8 | AQ36: 7.531557508
B37: 4.8 | D37: Urea | N37: 2.4 | V37: 0.2 | X37: 0 | AB37: 0 | AD37: 0 | AF37: 0 | AI37: 0 | AJ37: 2.81 | AK37: 2.81
B39: 5 | C39: Indicar los limites Maximos de PNDR y PDR, y el Precio de la Leche
V40: Limite | X40: Cantidad | AB40: FCM | AD40: =MP*0.4+MP*0.035*15 -> 32.375
V41: Maximo | X41: en la dieta | AB41: DMIf | AD41: =SUM(grains,protein)+DMI*Forage -> 23.68388731
B42: 5.1 | D42: PNDR | F42: Preteina No Degradable en Rumen | U42: % en la Dieta (MS) | V42: 0.07 | X42: =SUM(AB30:AC37,AB23:AC25,AI18) -> 0.07000000044
B43: 5.2 | D43: PDR | F43: Prteina Degradable en Rumen | U43: % en la Dieta (MS) | V43: 0.12 | X43: =SUM(AD30:AE37,AD23:AE25,AJ18) -> 0.1199388005
B44: 5.3 | D44: PB | F44: Proteina Bruta | U44: % en la Dieta (MS) | V44: =SUM(V42:V43) -> 0.19 | X44: =SUM(AF30:AG37,AF23:AG25,CP_F) -> 0.1900000009
B45: 5.4 | D45: Precio de la Leche | M45: $/Lt | N45: 1.4
B47: 6 | C47: Resultado de la Optimizacion, Maximiza el MSCSC
B48: 6.1 | D48: Hacer Click en el boton para Maximizar el Margen
D49: Sobre los Gastos en Concentrados
V50: Actual | X50: Optimizada
B51: 6.2 | D51: Produccion de Leche Esperada | U51: Lts/vaca/dia | V51: 37.42244024 | X51: =-55.61+1.15*AD41+8.79*X43*100-0.36*(X43*100)^2+1.85*X42*100 -> 38.21553901
B52: 6.3 | D52: Maximo Margen Sobre los Gastos en Concentrados (MSGC) | U52: $/vaca/dia | V52: 42.05641633 | X52: =(fMP*MPrice)-(SUMPRODUCT(protein,N30:N37)+SUMPRODUCT(grains,N23:N25)) -> 46.14675004
B55: 7 | C55: Analisis de Sustitucion de Energía y Proteína
B56: 7.1 | D56: Seleccionar el Suplemento Energetico | AA56: 1
B57: 7.2 | D57: Selecionar el Suplemento Proteico o Subproducto | AA57: 1
B58: 7.3.a | D58: Seleccionar una opcion para hacer un analisis de sensibilidad | AA58: 2
B59: 7.3.b | D59: Definir la maxima y minima variacion en los precios | T59: ↑ | U59: 0.5 | W59: ↓ | X59: 0.25
B60: 7.4 | D60: Hacer Click en el Boton para actualizar los resultados
D61: de las Secciones 8,9 y 10.
B63: 8 | C63: MSGC y Producción de Leche al Sustituir Energía por Proteína/Subproductos
B83: 9 | C83: Cambios en MSGC según la Máxima y Mínima variación de Precios Seleccionada
B103: =X23 -> 1.104152903 | D103: =X30 -> 0 | F103: =X42 -> 0.07000000044 | H103: =X43 -> 0.1199388005 | J103: =X44 -> 0.1900000009 | L103: =X51 -> 38.21553901 | R103: =X52 -> 46.14675004 | V103: =X52 -> 46.14675004 | X103: =X52 -> 46.14675004
B104: 10 | C104: MSGC y Producción de Leche según la Sustitución de Alimentos Concentrados y la Variación de Precios Seleccionados
B105: Conc. Energético (KgMS) | D105: Conc. Proteico (KgMS) | F105: PNDR | H105: PDR | J105: PB | L105: Leche | R105: MSGCbase ($/Vaca/día) | V105: MSGCBajoPrecio ($/Vaca/día) | X105: MSGCAltoPrecio ($/Vaca/día)
B106: 7.894629103 | D106: 1.578925821 | F106: 0.04518089182 | H106: 0.1060245748 | J106: 0.1512666667 | L106: 32.71217899 | R106: 37.6655826 | V106: 38.77083068 | X106: 37.11295857
B107: 7.751090392 | D107: 1.722464532 | F107: 0.04583981724 | H107: 0.1074626191 | J107: 0.1533636364 | L107: 32.99290657 | R107: 37.96530106 | V107: 39.17102624 | X107: 37.36243848
B108: 7.607551681 | D108: 1.866003243 | F108: 0.04649874265 | H108: 0.1089006634 | J108: 0.1554606061 | L108: 33.25874477 | R108: 38.24417437 | V108: 39.55037664 | X108: 37.59107324
B109: 7.46401297 | D109: 2.009541954 | F109: 0.04715766807 | H109: 0.1103387077 | J109: 0.1575575758 | L109: 33.50969356 | R109: 38.50220253 | V109: 39.9088819 | X109: 37.79886284
B110: 7.320474259 | D110: 2.153080664 | F110: 0.04781659348 | H110: 0.111776752 | J110: 0.1596545455 | L110: 33.74575297 | R110: 38.73938553 | V110: 40.246542 | X110: 37.9858073
B111: 7.176935548 | D111: 2.296619375 | F111: 0.04847551889 | H111: 0.1132147963 | J111: 0.1617515152 | L111: 33.96692298 | R111: 38.95572339 | V111: 40.56335695 | X111: 38.15190661
B112: 7.033396837 | D112: 2.440158086 | F112: 0.04913444431 | H112: 0.1146528405 | J112: 0.1638484848 | L112: 34.1732036 | R112: 39.15121609 | V112: 40.85932675 | X112: 38.29716076
B113: 6.889858126 | D113: 2.583696797 | F113: 0.04979336972 | H113: 0.1160908848 | J113: 0.1659454545 | L113: 34.36459482 | R113: 39.32586364 | V113: 41.1344514 | X113: 38.42156976
B114: 6.746319415 | D114: 2.727235508 | F114: 0.05045229513 | H114: 0.1175289291 | J114: 0.1680424242 | L114: 34.54109665 | R114: 39.47966604 | V114: 41.3887309 | X114: 38.52513361
B115: 6.602780704 | D115: 2.870774219 | F115: 0.05111122055 | H115: 0.1189669734 | J115: 0.1701393939 | L115: 34.70270909 | R115: 39.61262329 | V115: 41.62216524 | X115: 38.60785231
B116: 6.459241993 | D116: 3.01431293 | F116: 0.05177014596 | H116: 0.1204050177 | J116: 0.1722363636 | L116: 34.84943213 | R116: 39.72473539 | V116: 41.83475444 | X116: 38.66972586
B117: 6.315703283 | D117: 3.157851641 | F117: 0.05242907138 | H117: 0.121843062 | J117: 0.1743333333 | L117: 34.98126578 | R117: 39.81600233 | V117: 42.02649848 | X117: 38.71075426
B118: 6.172164572 | D118: 3.301390352 | F118: 0.05308799679 | H118: 0.1232811062 | J118: 0.176430303 | L118: 35.09821004 | R118: 39.88642413 | V118: 42.19739738 | X118: 38.73093751
B119: 6.028625861 | D119: 3.444929063 | F119: 0.0537469222 | H119: 0.1247191505 | J119: 0.1785272727 | L119: 35.2002649 | R119: 39.93600077 | V119: 42.34745112 | X119: 38.7302756
B120: 5.88508715 | D120: 3.588467774 | F120: 0.05440584762 | H120: 0.1261571948 | J120: 0.1806242424 | L120: 35.28743036 | R120: 39.96473226 | V120: 42.47665971 | X120: 38.70876854
B121: 5.741548439 | D121: 3.732006485 | F121: 0.05506477303 | H121: 0.1275952391 | J121: 0.1827212121 | L121: 35.35970644 | R121: 39.97261861 | V121: 42.58502314 | X121: 38.66641634
B122: 5.598009728 | D122: 3.875545196 | F122: 0.05572369844 | H122: 0.1290332834 | J122: 0.1848181818 | L122: 35.41709312 | R122: 39.95965979 | V122: 42.67254143 | X122: 38.60321898
B123: 5.454471017 | D123: 4.019083907 | F123: 0.05638262386 | H123: 0.1304713277 | J123: 0.1869151515 | L123: 35.4595904 | R123: 39.92585583 | V123: 42.73921457 | X123: 38.51917647
B124: 5.310932306 | D124: 4.162622618 | F124: 0.05704154927 | H124: 0.1319093719 | J124: 0.1890121212 | L124: 35.4871983 | R124: 39.87120672 | V124: 42.78504255 | X124: 38.4142888
